[Event "44th Chess Olympiad Women 2022"]
[Site "Chennai"]
[Date "2022.07.29"]
[Round "1.20"]
[White "Sandu, Mihaela"]
[Black "Mongeli, Sasha"]
[Result "1-0"]
[ECO "B12"]
[WhiteElo "2297"]
[BlackElo "1672"]
[Annotator "TA"]
[PlyCount "77"]
[EventDate "2022.07.29"]
[EventType "team-tourn"]
[EventCountry "IND"]
[SourceTitle "playchess.com"]
[Source "ChessBase"]
[SourceQuality "1"]
[WhiteTeam "Romania"]
[BlackTeam "Kenya"]
[WhiteTeamCountry "ROU"]
[BlackTeamCountry "KEN"]
[TimeControl "40/5400+30:1800+30"]

{[%evp 13,77,21,37,36,80,72,78,67,79,84,144,136,145,143,131,131,172,131,142,125,150,172,252,246,538,538,542,365,964,908,873,725,700,714,710,707,681,666,597,524,2475,2328,4910,1787,5197,3449,29982,29971,29983,29984,29990,29991,29991,29992,29992,29993,29993,29978,29993,29993,29993,29994,29994,29995,29996,29997]} 1. e4 {[%emt 0:00:05]} c6 {[%emt 0:00:13]} 2. d4 {[%emt 0:00:18]} d5 {[%emt 0:00:20]} 3. e5 {[%emt 0:01:29]} Bf5 {[%emt 0:00:26]} 4. Nf3 {[%emt 0:00:13]} e6 {[%emt 0:00:38]} 5. Be2 {[%emt 0:00:10]} Nd7 {[%emt 0:01:01]} 6. O-O {[%emt 0:00:16]} Ne7 {[%emt 0:01:30]} 7. Nbd2 {[%emt 0:00:55]} c5 {[%emt 0:06:59]} 8. c4 {[%emt 0:00:53] B12: Caro-Kann: Advance Variation.} Bg4 {[%emt 0:03:56]} 9. h3 {[%emt 0:04:47]} Bh5 {[%emt 0:02:22]} 10. dxc5 {[%emt 0:03:00] White is better.} Nxc5 {[%emt 0:05:20]} 11. b4 {[%emt 0:03:59] [#]} Bxf3 $146 {[%emt 0:11:06]} ({Black should try} 11... Ne4) ({Predecessor:} 11... Nd7 12. Nd4 Bxe2 13. Qxe2 Nc6 14. Nb5 a6 15. cxd5 axb5 16. dxc6 bxc6 17. Qe4 Qc7 {½-½ (52) Strbac,M (2296)-Zivkovic,V (2240) Sombor 2009}) 12. Nxf3 $16 {[%emt 0:01:47]} Nd7 {[%emt 0:05:22]} 13. Bg5 {[%emt 0:09:09] Strongly threatening cxd5.} dxc4 {[%emt 0:03:24]} 14. Bxc4 {[%emt 0:02:02]} Qb6 {[%emt 0:02:06]} 15. Qe2 {[%emt 0:06:04]} Nc6 {[%emt 0:05:15]} 16. a3 {[%emt 0:02:04]} Be7 {[%emt 0:05:54]} 17. Bxe7 {[%emt 0:05:06]} Nxe7 {[%emt 0:02:26]} (17... Kxe7 $142 18. Qe4 Rad8) 18. Rfd1 $18 {[%emt 0:04:32]} Rd8 $2 {[%emt 0:01:53]} (18... Nc6 {was called for.} 19. Rac1 (19. Rxd7 Kxd7 20. Rd1+ Ke7 $11) 19... Qd8) 19. Rd6 {[%emt 0:03:41]} Qc7 {[%emt 0:01:39]} 20. Rad1 {[%emt 0:12:21]} Nc8 $2 {[%emt 0:09:13] [#]} (20... O-O 21. Ng5 Nxe5 22. Qxe5 Rxd6 23. Qxd6 Qxd6 24. Rxd6 Nc6) 21. Ng5 $1 {[%emt 0:05:53][%cal Oc4e6] Bxe6! is the strong threat.} O-O {[%emt 0:18:17]} 22. Nxe6 {[%emt 0:02:33]} fxe6 {[%emt 0:01:47]} 23. Bxe6+ {[%emt 0:00:06]} Kh8 {[%emt 0:00:05]} 24. Rxd7 {[%emt 0:00:14]} Rxd7 {[%emt 0:00:40]} 25. Rxd7 {[%emt 0:03:19]} Qc1+ {[%emt 0:01:42]} 26. Rd1 {[%emt 0:06:16]} Qxa3 {[%emt 0:00:54]} 27. Bxc8 {[%emt 0:00:40][%cal Oe5e6] Intending e6! and mate.} Rxc8 {[%emt 0:00:17][%mdl 4096] Endgame [#] KQR-KQR} 28. Qc4 $3 {[%emt 0:01:23][%mdl 512]} Rf8 {[%emt 0:02:59]} (28... Re8 29. Qf7) 29. e6 {[%emt 0:01:22] White threatens e7 and mate.} Qb2 {[%emt 0:00:50] [#]} 30. Qf4 $3 {[%emt 0:00:53][%cal Rf4f8][%mdl 512] Active counter play! White mates.} Kg8 {[%emt 0:01:40] [#]} (30... Rg8 31. Qf7) 31. e7 $1 {[%emt 0:06:19][%csl Gf4][%cal Re7f8]} Rxf4 {[%emt 0:04:47] [#]} (31... Qf6 32. exf8=Q+) 32. Rd8+ $1 {[%emt 0:00:07]} ({Weaker is} 32. e8=Q+ Rf8 33. Qe6+ Kh8 $16) 32... Kf7 {[%emt 0:00:15]} 33. e8=Q+ {[%emt 0:00:06] KQR-KQR} Kf6 {[%emt 0:00:12]} 34. Rd6+ {[%emt 0:00:04]} Kg5 {[%emt 0:00:31]} 35. Qe7+ {[%emt 0:00:16]} Kh5 {[%emt 0:01:08]} 36. g4+ {[%emt 0:00:11]} Rxg4+ {[%emt 0:00:35]} 37. hxg4+ {[%emt 0:00:05]} Kxg4 {[%emt 0:00:03]} 38. Qe4+ {[%emt 0:00:12]} Kg5 {[%emt 0:00:37]} 39. Rd5+ {[%emt 0:00:10] Black did not feel at home in the position after the opening.  Weighted Error Value: White=0.14 (very precise) /Black=0.62} 1-0

[Event "44th Chess Olympiad Women 2022"]
[Site "Chennai"]
[Date "2022.07.29"]
[Round "1.20"]
[White "Cosma, Elena-Luminita"]
[Black "Mutisya, Jully"]
[Result "1-0"]
[ECO "E60"]
[WhiteElo "2248"]
[BlackElo "1428"]
[Annotator "TA"]
[PlyCount "65"]
[EventDate "2022.07.29"]
[EventType "team-tourn"]
[EventCountry "IND"]
[SourceTitle "playchess.com"]
[Source "ChessBase"]
[SourceQuality "1"]
[WhiteTeam "Romania"]
[BlackTeam "Kenya"]
[WhiteTeamCountry "ROU"]
[BlackTeamCountry "KEN"]
[TimeControl "40/5400+30:1800+30"]

{[%evp 14,65,27,26,61,58,61,61,55,47,70,62,64,58,63,71,63,59,69,62,77,66,81,50,173,179,350,340,444,310,310,310,309,307,302,314,295,305,315,310,315,301,356,351,362,338,673,671,673,685,663,613,619,614]} 1. d4 {[%emt 0:00:03]} Nf6 {[%emt 0:00:17]} 2. Nf3 {[%emt 0:00:08]} g6 {[%emt 0:00:48]} 3. g3 {[%emt 0:00:08]} Bg7 {[%emt 0:00:09]} 4. Bg2 {[%emt 0:00:05]} O-O {[%emt 0:00:18]} 5. O-O {[%emt 0:00:05]} d6 {[%emt 0:00:13]} 6. b3 {[%emt 0:00:08]} c5 {[%emt 0:03:31]} 7. c4 {[%emt 0:00:10]} Nc6 {[%emt 0:01:05]} 8. Bb2 {[%emt 0:00:06]} Nd7 {[%emt 0:05:06] E60: King's Indian: Unusual lines and Fianchetto Variation without Nc3.} 9. Qd2 {[%emt 0:11:14]} cxd4 {[%emt 0:15:23]} 10. Nxd4 {[%emt 0:00:07]} Qb6 {[%emt 0:02:18][%cal Rc6d4] [#] White is slightly better.} 11. Nf3 $146 {[%emt 0:15:01]} ({Predecessor:} 11. Nxc6 bxc6 12. Bxg7 Kxg7 13. Nc3 Bb7 14. h4 Nf6 15. e4 Rfd8 16. Rfe1 e5 17. Na4 {1-0 (45) Panesso Rivera,H (2386)-Mosquera,M (2479) Villavicencio 2021}) 11... Nc5 {[%emt 0:07:35]} 12. Bxg7 {[%emt 0:00:53]} Kxg7 {[%emt 0:00:15]} 13. Nc3 {[%emt 0:00:14][%cal Bb1c3,Bc3d5,Bd5f4][%mdl 32]} a5 {[%emt 0:09:29]} 14. Nd5 {[%emt 0:03:57]} Qd8 {[%emt 0:02:35]} 15. Rfd1 {[%emt 0:05:48] White is more active.} Be6 {[%emt 0:11:20]} 16. Nf4 {[%emt 0:11:01]} Qd7 {[%emt 0:04:34]} 17. Rac1 {[%emt 0:04:18]} Rab8 {[%emt 0:07:00]} 18. Ng5 {[%emt 0:23:48]} Ne5 {[%emt 0:13:00] A mistake that costs the game.} (18... Bf5 $14) 19. Qxa5 $18 {[%emt 0:03:48]} h6 $2 {[%emt 0:03:01] [#]} (19... Bg4 20. Qd2 f6) 20. Ngxe6+ {[%emt 0:02:30]} fxe6 {[%emt 0:00:35]} 21. Qxc5 {[%emt 0:03:01]} dxc5 {[%emt 0:04:16]} 22. Rxd7 {[%emt 0:00:06]} Nxd7 {[%emt 0:03:04]} 23. Nxe6+ {[%emt 0:00:04]} Kf6 {[%emt 0:00:28]} 24. Nxf8 {[%emt 0:00:19]} Nxf8 {[%emt 0:00:16][%mdl 4096] Endgame KRB-KRN} 25. Rd1 {[%emt 0:00:16]} b6 {[%emt 0:00:44]} 26. f4 {[%emt 0:04:27][%cal Bf2f4,Bf4e5][%mdl 32]} Ne6 {[%emt 0:01:41]} 27. e3 {[%emt 0:02:14]} h5 {[%emt 0:01:10]} 28. Kf2 {[%emt 0:00:41]} Nf8 {[%emt 0:01:34]} 29. Ke2 {[%emt 0:00:50]} e5 $2 {[%emt 0:01:16] [#]} (29... Kg7 30. h3 Ne6) 30. Rd6+ {[%emt 0:00:44] White is clearly winning.} Ke7 {[%emt 0:01:24]} 31. fxe5 {[%emt 0:00:28]} b5 {[%emt 0:00:52]} 32. cxb5 {[%emt 0:03:17]} Rxb5 {[%emt 0:00:11]} 33. Bd5 {[%emt 0:00:14] Weighted Error Value: White=0.11 (very precise) /Black=0.50} 1-0

[Event "44th Chess Olympiad Women 2022"]
[Site "Chennai"]
[Date "2022.07.29"]
[Round "1.20"]
[White "Madelta Glenda"]
[Black "Lehaci, Miruna-Daria"]
[Result "0-1"]
[ECO "D00"]
[WhiteElo "1516"]
[BlackElo "2193"]
[Annotator "TA"]
[PlyCount "104"]
[EventDate "2022.07.29"]
[EventType "team-tourn"]
[EventCountry "IND"]
[SourceTitle "playchess.com"]
[Source "ChessBase"]
[SourceQuality "1"]
[WhiteTeam "Kenya"]
[BlackTeam "Romania"]
[WhiteTeamCountry "KEN"]
[BlackTeamCountry "ROU"]
[TimeControl "40/5400+30:1800+30"]

{[%evp 9,103,2,6,-2,0,-6,3,-8,-5,-7,-6,-24,-9,-2,-2,-4,0,-10,-4,-4,-9,-22,-21,-17,-12,-20,-17,-10,-9,-13,-4,-14,0,0,0,0,0,0,0,0,0,0,0,0,20,0,0,0,36,13,93,31,54,43,55,16,108,0,0,-195,-195,-194,-170,-189,-188,-237,-179,-188,-156,-210,-77,-81,-54,-49,-41,-69,-37,-40,-43,-24,-60,-102,-35,-99,-79,-166,-142,-428,-409,-29996,-29997,-29997,-29998,-29998,-29999,-29999]} 1. d4 {[%emt 0:00:05]} e6 {[%emt 0:00:07]} 2. Bf4 {[%emt 0:00:10]} Nf6 {[%emt 0:00:15]} 3. e3 {[%emt 0:00:14]} c5 {[%emt 0:03:23]} 4. c3 {[%emt 0:02:00]} d5 {[%emt 0:01:33]} 5. Nd2 {[%emt 0:06:06]} Bd6 {[%emt 0:05:10]} 6. Bg3 {[%emt 0:02:26] D00: 1 d4 d5: Unusual lines.} Qc7 {[%emt 0:01:32]} 7. Ngf3 {[%emt 0:04:42]} Nbd7 {[%emt 0:01:54]} 8. Bb5 {[%emt 0:03:56] The position is equal.} O-O {[%emt 0:03:34]} 9. O-O {[%emt 0:03:13]} a6 {[%emt 0:02:03]} 10. Bd3 {[%emt 0:05:19] [#]} e5 $146 {[%emt 0:03:41]} ({Predecessor:} 10... Bxg3 11. fxg3 e5 12. e4 cxd4 13. cxd4 exd4 14. Qe2 Ne5 15. exd5 Nxd3 16. Qxd3 Nxd5 17. Qxd4 {½-½ (82) Irkilmez,Y (2167)-Hagner,B (2034) Playchess.com INT 2020}) 11. dxe5 {[%emt 0:03:11]} (11. Nxe5 {is more complex.} Nxe5 12. dxe5 Bxe5 13. Bxe5 Qxe5 14. h3) 11... Nxe5 {[%emt 0:00:08]} 12. Nxe5 {[%emt 0:01:11]} Bxe5 {[%emt 0:00:04]} 13. Bxe5 {[%emt 0:02:14]} Qxe5 {[%emt 0:00:06]} 14. Nf3 {[%emt 0:00:05]} Qe7 {[%emt 0:00:53]} 15. Re1 {[%emt 0:01:12]} Bg4 {[%emt 0:03:30]} 16. Be2 {[%emt 0:02:47]} Rad8 {[%emt 0:02:30]} 17. Qc2 {[%emt 0:12:27]} Rd6 {[%emt 0:05:37]} 18. Nh4 {[%emt 0:04:01] aiming for Bxg4.} Qe5 {[%emt 0:06:16]} 19. Nf3 {[%emt 0:07:21]} Qe8 {[%emt 0:04:32]} 20. Rad1 {[%emt 0:00:40]} (20. h3 $5 {[%cal Rh3g4]} Bh5 21. b4 $11) 20... Re6 {[%emt 0:18:43]} 21. Ng5 {[%emt 0:15:31]} Bxe2 {[%emt 0:00:41]} 22. Rxe2 {[%emt 0:02:45]} Re5 {[%emt 0:02:29]} 23. Nf3 {[%emt 0:00:50]} Re4 {[%emt 0:01:11]} 24. Ng5 {[%emt 0:01:10]} Re7 {[%emt 0:07:16]} 25. Nf3 {[%emt 0:01:16]} Re4 {[%emt 0:07:10]} 26. Ng5 {[%emt 0:00:43]} Rh4 {[%emt 0:01:50]} 27. Qf5 {[%emt 0:02:39]} Rh5 {[%emt 0:02:38]} 28. g4 {[%emt 0:05:07]} Rh4 {[%emt 0:03:58] Threatens to win with ...Qa4.} 29. h3 $1 {[%emt 0:01:57]} Rh6 {[%emt 0:05:48] [#]} (29... h5 $11 {keeps the balance.}) 30. Kg2 {[%emt 0:00:49]} (30. e4 $1 $16) 30... Rg6 {[%emt 0:01:31]} 31. Nf3 $1 {[%emt 0:04:22]} h6 {[%emt 0:00:07]} 32. Red2 {[%emt 0:01:43][%cal Oc3c4]} Qe7 {[%emt 0:01:13] [#]} (32... b6 $11) 33. Qe5 {[%emt 0:01:10]} (33. c4 $1 $16) 33... Qd7 $1 $11 {[%emt 0:00:46] Strongly threatening ...Re8.} 34. Nh4 $2 {[%emt 0:01:05] [#]} (34. Kh2 $11 {and White stays safe.}) 34... Nxg4 $1 $19 {[%emt 0:01:34][%mdl 512]} 35. hxg4 {[%emt 0:01:06]} Qxg4+ {[%emt 0:00:26]} 36. Kf1 {[%emt 0:00:15]} Qxh4 {[%emt 0:00:45]} 37. Rxd5 {[%emt 0:00:44]} (37. Qxd5 {is a better defense.} b5 38. Rd3) 37... Rf6 {[%emt 0:01:08][%csl Gf6][%cal Rh4f2]} 38. R1d2 {[%emt 0:00:27]} Qh3+ {[%emt 0:01:01]} 39. Ke2 {[%emt 0:00:15]} (39. Ke1 $17) 39... Qg2 {[%emt 0:00:41]} (39... Qg4+ $19 {and Black stays clearly on top.} 40. Kf1 Qc4+ 41. R2d3 Qxa2) 40. Qg3 $17 {[%emt 0:01:10]} Qe4 {[%emt 0:00:21]} 41. Rxc5 {[%emt 0:31:06]} Qb1 {[%emt 0:32:21]} 42. a3 {[%emt 0:01:25]} Rg6 {[%emt 0:00:00]} (42... Rb6 $5 {[%cal Rb6b2]} 43. b4 Rf6 $15) 43. Qh3 {[%emt 0:00:00]} Rg1 {[%emt 0:00:00] And now ...Qe1+ would win.} 44. Rc8 {[%emt 0:00:00]} Rxc8 {[%emt 0:00:00]} 45. Qxc8+ $11 {[%emt 0:00:00][%mdl 4096] Endgame KQR-KQR} Kh7 {[%emt 0:00:00]} 46. Kf3 {[%emt 0:00:00]} (46. Qd7 $1 $15) 46... Qg6 $36 {[%emt 0:00:00][%mdl 2048] Hoping for ...f5. Black is in control.} 47. Qd7 {[%emt 0:00:00]} (47. Qh3 $17 {was worth a try.}) 47... f5 $19 {[%emt 0:00:00][%csl Gf5,Gg1][%cal Rg6g4]} 48. Ke2 $2 {[%emt 0:00:00][%mdl 8192] Now White is beyond hope.} (48. Rd4 $17) 48... Qg4+ {[%emt 0:00:00]} 49. Kd3 {[%emt 0:00:00]} (49. f3 $19 Rg2+ 50. Kd3 Rxd2+ 51. Kxd2 Qxf3 52. Qf7) 49... Qe4+ {[%emt 0:00:00] Black mates.} 50. Ke2 {[%emt 0:00:00]} Qc4+ {[%emt 0:00:00]} 51. Rd3 {[%emt 0:00:00]} Qg4+ {[%emt 0:00:00]} 52. Kd2 {[%emt 0:01:52]} Qd1# {[%emt 0:00:00] Weighted Error Value: White=0.46/Black=0.18 (very precise)} 0-1

[Event "44th Chess Olympiad Women 2022"]
[Site "Chennai"]
[Date "2022.07.29"]
[Round "1.20"]
[White "Obondo, Cynthia Awino"]
[Black "Ciolacu, Alessia-Mihaela"]
[Result "1-0"]
[ECO "A47"]
[WhiteElo "1439"]
[BlackElo "2163"]
[Annotator "TA"]
[PlyCount "147"]
[EventDate "2022.07.29"]
[EventType "team-tourn"]
[EventCountry "IND"]
[SourceTitle "playchess.com"]
[Source "ChessBase"]
[SourceQuality "1"]
[WhiteTeam "Kenya"]
[BlackTeam "Romania"]
[WhiteTeamCountry "KEN"]
[BlackTeamCountry "ROU"]
[TimeControl "40/5400+30:1800+30"]

{[%evp 13,147,-6,-7,-15,-13,-16,-8,-8,-8,-14,-7,-20,-18,-31,-26,-30,-25,-47,-54,-47,-38,-47,-41,-54,-47,-85,-54,-55,-37,-58,-34,-92,-108,-95,-111,-108,-99,-139,-122,-190,-31,-152,-149,-152,-163,-157,-162,-149,-112,-118,-102,-165,-134,-215,-150,-289,-272,-275,-263,-235,-57,-83,0,-41,90,102,247,229,213,172,166,151,288,248,470,463,414,298,293,248,293,187,209,0,0,0,0,0,0,0,0,0,0,0,0,0,47,0,0,0,0,0,118,118,118,118,230,230,230,213,672,645,638,558,806,788,1540,1503,1254,1268,1354,1312,2405,2359,29978,29979,29977,29978,29979,29979,29987,29987,29988,29989,29992,29992]} 1. d4 {[%emt 0:00:13]} Nf6 {[%emt 0:00:08]} 2. Nf3 {[%emt 0:00:11]} b6 {[%emt 0:00:14]} 3. e3 {[%emt 0:00:56]} Bb7 {[%emt 0:00:22]} 4. Bd3 {[%emt 0:00:33]} g6 {[%emt 0:00:40]} 5. Nbd2 {[%emt 0:00:27]} c5 {[%emt 0:01:46]} 6. b3 {[%emt 0:00:41]} Bg7 {[%emt 0:01:17]} 7. Bb2 {[%emt 0:00:19]} O-O {[%emt 0:02:41]} 8. O-O {[%emt 0:00:48] A47: 1 d4 Nf6 2 Nf3 b6: Torre, London and Colle Systems.} Nc6 {[%emt 0:04:36]} 9. a3 {[%emt 0:01:42]} Nh5 {[%emt 0:00:26] [#]} 10. Re1 $146 {[%emt 0:04:49] The position is equal.} ({Predecessor:} 10. Rb1 e6 11. c4 cxd4 12. exd4 d5 13. Ne5 Nxe5 14. dxe5 Nf4 15. Nf3 Nxd3 16. Qxd3 dxc4 17. Qxc4 Bxf3 18. gxf3 {½-½ (44) Patru,A (1536)-Ciolacu,A (1926) Calimanesti 2018}) 10... d5 {[%emt 0:09:48]} 11. g3 {[%emt 0:18:06]} e6 {[%emt 0:09:52]} 12. Bf1 {[%emt 0:02:00]} Rc8 {[%emt 0:02:20]} 13. c4 {[%emt 0:04:52]} cxd4 {[%emt 0:10:38]} 14. exd4 {[%emt 0:01:50]} Nf6 {[%emt 0:01:33]} 15. Bg2 {[%emt 0:01:39]} dxc4 {[%emt 0:11:43]} 16. Nxc4 {[%emt 0:01:34]} Na5 {[%emt 0:03:31]} 17. Nxa5 {[%emt 0:01:55]} bxa5 {[%emt 0:00:05]} 18. Rc1 {[%emt 0:02:24]} Qb6 {[%emt 0:01:37]} 19. Qd3 {[%emt 0:06:25]} Ba6 {[%emt 0:02:14]} 20. Qd1 {[%emt 0:03:49]} Rxc1 {[%emt 0:04:14]} 21. Bxc1 {[%emt 0:00:47]} Nd5 {[%emt 0:02:08]} 22. Bb2 {[%emt 0:03:56] Against Nc3} (22. Ne5 $15) 22... Rb8 $17 {[%emt 0:01:04]} 23. Nd2 {[%emt 0:18:44]} Bxd4 {[%emt 0:00:57]} 24. Bxd4 {[%emt 0:01:42]} Qxd4 {[%emt 0:00:08]} 25. Bxd5 {[%emt 0:04:11]} Qxd5 {[%emt 0:00:50]} 26. Qc2 {[%emt 0:01:40]} (26. Ne4 $17 Qxd1 27. Rxd1) 26... e5 $2 {[%emt 0:14:54]} ({Black should try} 26... Rf8 $19 {Threatens to win with ...Bb7.} 27. Qc3 Bb7) 27. Qc3 {[%emt 0:08:23]} (27. Ne4 $15 Rb6 28. Qc7) 27... Rc8 {[%emt 0:01:54]} 28. Qb2 {[%emt 0:04:36]} (28. Rxe5 $2 Rxc3 29. Rxd5 Rc1+ 30. Nf1 Bxf1 $19) 28... Bb7 $40 {[%emt 0:01:15][%csl Gb7][%cal Rd5h1][%mdl 128] Black has strong attack.} 29. Ne4 {[%emt 0:01:57]} Kg7 {[%emt 0:02:26] Prevents Nf6.} 30. f3 {[%emt 0:00:23]} f5 {[%emt 0:06:24]} 31. Nd2 {[%emt 0:00:11]} Re8 {[%emt 0:01:13]} 32. Kg2 {[%emt 0:00:13]} (32. a4 $17) 32... Kg8 {[%emt 0:00:56]} 33. Qc3 {[%emt 0:00:33]} (33. Re3 $17) 33... e4 {[%emt 0:02:26] White must now prevent ...exf3+.} 34. fxe4 {[%emt 0:00:04]} (34. Kg1 $17 {was worth a try.}) 34... fxe4 $19 {[%emt 0:00:12]} 35. Qe3 {[%emt 0:00:49]} Rd8 $1 {[%emt 0:00:36]} 36. Re2 {[%emt 0:01:19]} Rf8 $2 {[%emt 0:00:50]} (36... Qh5 $1 $19 {And now ...Rd3 would win.} 37. Rf2 Qd1) 37. Rf2 {[%emt 0:00:11]} Rd8 {[%emt 0:00:19]} ({Black should play} 37... Rc8 $17 {aiming for ...Qd3.} 38. Kg1 Qd3 39. Qxd3 exd3) 38. Nc4 {[%emt 0:00:23]} Qd3 {[%emt 0:00:29]} (38... Qd1 $15 {keeps the upper hand.} 39. Nxa5 Qd3) 39. Rd2 $16 {[%emt 0:00:39] White is more active.} Qxd2+ {[%emt 0:00:38]} (39... Re8 $16) 40. Nxd2 $18 {[%emt 0:00:31]} Rxd2+ $16 {[%emt 0:00:34][%mdl 4096] Endgame KQ-KRB} 41. Kh3 {[%emt 0:33:24]} Bc8+ {[%emt 0:30:29]} 42. Kh4 {[%emt 0:00:02]} Rd5 {[%emt 0:00:00]} (42... Rxh2+ $16 43. Kg5 Rh5+ 44. Kf4 Bb7) 43. g4 $18 {[%emt 0:00:00]} Bb7 $2 {[%emt 0:00:00]} (43... Be6 {is a better defense.} 44. Qxe4 Bf7) 44. Qxa7 {[%emt 0:00:00]} Rd7 {[%emt 0:00:00]} 45. Qb8+ {[%emt 0:00:00]} Kf7 {[%emt 0:00:00]} 46. Qh8 {[%emt 0:00:00]} Ke6 {[%emt 0:00:00]} 47. Qe8+ {[%emt 0:00:00]} Re7 {[%emt 0:00:00] [#]} 48. Qb5 {[%emt 0:00:00]} (48. Qg8+ $1 $18 Kd7 49. Qb8) 48... e3 $11 {[%emt 0:00:00]} 49. Qe2 {[%emt 0:00:00]} ({Resist} 49. Qxa5 e2 $14) 49... Kd7 {[%emt 0:00:00]} 50. Kg3 {[%emt 0:00:00]} Re5 {[%emt 0:00:00]} 51. h4 {[%emt 0:00:00]} Bc6 {[%emt 0:00:00]} 52. a4 {[%emt 0:00:00]} h6 {[%emt 0:00:00]} 53. Kf4 {[%emt 0:00:00]} Re4+ {[%emt 0:00:00]} 54. Kg3 {[%emt 0:00:00]} Kd6 {[%emt 0:00:00]} (54... Re5 $11) 55. Qd3+ {[%emt 0:00:00]} (55. Kg2 $1 $14 {might be stronger.}) 55... Kc7 {[%emt 0:00:00]} 56. Qe2 {[%emt 0:00:00]} Kb6 {[%emt 0:00:00]} 57. Kh2 {[%emt 0:00:00]} g5 {[%emt 0:00:12]} (57... h5 $11) 58. hxg5 $16 {[%emt 0:00:00]} hxg5 {[%emt 0:00:08] [#]} 59. Kg1 $1 {[%emt 0:00:31]} Re5 {[%emt 0:02:08]} (59... Kc5 $16) 60. Kf1 {[%emt 0:01:34]} Bb7 {[%emt 0:00:11] ( -> ...Ba6)} 61. Ke1 {[%emt 0:00:18]} Ba6 $2 {[%emt 0:00:29]} (61... Bc6 62. Qd3 Kc7) 62. Qd1 {[%emt 0:01:02] Qd6+ would kill now.} Re6 {[%emt 0:02:41] Prevents Qd6+.} 63. Qd5 {[%emt 0:00:31]} Bc8 {[%emt 0:00:47]} 64. Qxg5 {[%emt 0:01:04]} e2 {[%emt 0:02:08]} 65. Qb5+ {[%emt 0:00:48]} Kc7 {[%emt 0:00:04]} 66. Qxa5+ {[%emt 0:00:42]} Kd7 {[%emt 0:00:43]} 67. g5 {[%emt 0:01:00] Qf5 is the strong threat.} Ba6 {[%emt 0:01:14]} 68. b4 {[%emt 0:01:00][%cal Bb3b4,Bb4b5][%mdl 32]} Bc4 {[%emt 0:01:55]} 69. Qa7+ {[%emt 0:00:24] White mates.} Ke8 {[%emt 0:00:13]} 70. Qc5 {[%emt 0:00:42]} Bb3 {[%emt 0:00:55]} 71. a5 {[%emt 0:00:21]} Bd1 {[%emt 0:00:50]} 72. b5 {[%emt 0:00:19]} Re7 {[%emt 0:00:14]} 73. g6 {[%emt 0:00:28][%cal Rc5c8,Bg5g6,Bg6g7][%mdl 32]} Re6 {[%emt 0:01:05]} 74. g7 {[%emt 0:00:35] Never resign too early!  Weighted Error Value: White=0.29 (precise) /Black=0.41} 1-0

[Event "44th Chess Olympiad Women 2022"]
[Site "Chennai"]
[Date "2022.07.29"]
[Round "1.21"]
[White "Varney, Zoe"]
[Black "Elfelo, Khadija"]
[Result "1-0"]
[ECO "B90"]
[WhiteElo "2045"]
[BlackElo "1875"]
[Annotator "TA"]
[PlyCount "53"]
[EventDate "2022.07.29"]
[EventType "team-tourn"]
[EventCountry "IND"]
[SourceTitle "playchess.com"]
[Source "ChessBase"]
[SourceQuality "1"]
[WhiteTeam "England"]
[BlackTeam "Libya"]
[WhiteTeamCountry "ENG"]
[BlackTeamCountry "LBY"]
[TimeControl "40/5400+30:1800+30"]

{[%evp 20,53,63,44,106,110,94,104,95,115,98,35,187,191,193,193,184,183,200,157,312,312,312,305,321,319,328,282,465,485,629,456,1405,1338,29989,29990]} 1. e4 {[%emt 0:00:04]} c5 {[%emt 0:00:11]} 2. Nf3 {[%emt 0:00:05]} d6 {[%emt 0:00:08]} 3. d4 {[%emt 0:00:05]} cxd4 {[%emt 0:00:04]} 4. Nxd4 {[%emt 0:00:06]} Nf6 {[%emt 0:00:14]} 5. Nc3 {[%emt 0:00:06]} a6 {[%emt 0:00:15]} 6. Be3 {[%emt 0:00:06]} e5 {[%emt 0:00:35]} 7. Nb3 {[%emt 0:00:06]} Be7 {[%emt 0:00:11]} 8. f3 {[%emt 0:00:09]} O-O {[%emt 0:01:08]} 9. Qd2 {[%emt 0:00:46]} Be6 {[%emt 0:00:30]} 10. O-O-O {[%emt 0:02:03]} Nc6 {[%emt 0:00:47]} 11. g4 {[%emt 0:11:31][%cal Bg2g4,Bg4g5][%mdl 32]} Rc8 {[%emt 0:09:01] B90: Sicilian Najdorf: Unusual White 6th moves, 6 Be3 Ng4 and 6 Be3 e5.} ({Better is} 11... a5 $14) 12. g5 $16 {[%emt 0:05:17]} Nh5 {[%emt 0:11:42]} 13. Nd5 {[%emt 0:22:12]} Bxd5 {[%emt 0:07:08] White is better.} 14. exd5 {[%emt 0:00:09]} Nb8 {[%emt 0:03:56] [#]} 15. Bd3 $146 {[%emt 0:13:18] White is more active.} (15. Kb1 $16) ({Predecessor:} 15. Bh3 Nd7 16. Bg4 Nf4 17. h4 Rc4 18. Kb1 f5 19. gxf6 Nxf6 20. Be6+ Nxe6 21. dxe6 {1-0 (55) Yordanov,N (2296)-Tsanov,M (1900) Sunny Beach 2015}) 15... Nf4 $2 {[%emt 0:06:15] Loses the game.} ({Black should play} 15... f5 $14) 16. Bxf4 $18 {[%emt 0:00:00]} exf4 {[%emt 0:00:07]} 17. h4 {[%emt 0:00:00]} Nd7 {[%emt 0:06:38]} 18. Qxf4 {[%emt 0:06:05]} Ne5 {[%emt 0:02:35]} 19. Qd4 $40 {[%emt 0:02:36][%mdl 128] White goes for the king.} Nxf3 $2 {[%emt 0:12:45]} (19... Qd7 $16 20. Kb1 Bd8) 20. Qe4 {[%emt 0:04:25][%csl Gd3,LRf3,LRh7][%cal Re4h7] [#]} Nxg5 {[%emt 0:07:13]} 21. hxg5 {[%emt 0:00:08]} Bxg5+ {[%emt 0:00:05]} 22. Kb1 {[%emt 0:00:14][%csl Gd3,Gh1][%cal Re4h7]} g6 {[%emt 0:01:13]} 23. Qg4 {[%emt 0:11:58] Threatens to win with Nd4.} f5 $2 {[%emt 0:03:20]} (23... Re8 24. Rdg1 Rc7) 24. Qh3 {[%emt 0:01:51][%csl Gh1][%cal Rh3h7]} h6 {[%emt 0:00:42]} 25. Rdg1 {[%emt 0:02:04]} Kg7 {[%emt 0:08:14]} (25... Qf6 $142 26. Nd4 Rfe8 27. Bxf5 Re3 28. Be6+ Kh7) 26. Nd4 {[%emt 0:00:19] Hoping for Ne6+.} Qd7 {[%emt 0:02:14] [#]} 27. Rxg5 $1 {[%emt 0:01:24][%mdl 512] Weighted Error Value: White=0.25 (precise) /Black=1.07} 1-0